fUST/lending_fUST_20251003
["ID","MTS","AMOUNT","RATE_DAILY","PERIOD"]
[388890945,1759473039913,-1239.81,0.00018051,2]
[388890946,1759473039923,-516.98,0.00018051,2]
[388890947,1759473039931,-500.0,0.00018051,2]
[388890948,1759473039940,-473.20527816,0.00018051,2]
[388890949,1759473039950,-1036.86,0.00018051,2]
[388890950,1759473039959,-500.0,0.00018051,2]
[388890951,1759473039969,-519.49,0.00018051,2]
[388890952,1759473039978,-931.6,0.00018051,2]
[388890953,1759473039987,-500.0,0.00018051,2]
[388890954,1759473039997,-1784.96,0.00018051,2]
[388890955,1759473040007,-1588.64,0.00018051,2]
[388890956,1759473040016,-1193.05,0.00018051,2]
[388890957,1759473040025,-1114.78,0.00018051,2]
[388890958,1759473040034,-823.52,0.00018051,2]
[388890959,1759473040043,-1030.12505645,0.00018051,2]
[388890977,1759473043133,-500.0,0.0001805,2]
[388890978,1759473043143,-1040.08494355,0.00018051,2]
[388890980,1759473043153,-500.0,0.00018051,2]
[388890982,1759473043164,-151.0,0.00018051,2]
[388890984,1759473043173,-500.0,0.00018051,2]
[388890986,1759473043183,-612.98,0.00018051,2]
[388890988,1759473043192,-3087.46,0.00018051,2]
[388890989,1759473043202,-762.25,0.00018051,2]
[388890990,1759473043211,-221.457344,0.00018051,2]
[388890991,1759473043221,-450.67918437,0.00018051,2]
[388890998,1759473047271,457.98,0.00018043,3]
[388891000,1759473096078,227.08285535,0.00017953,2]
[388891001,1759473096106,538.48673583,0.00017953,2]
[388891002,1759473121540,800.0,0.00017953,2]
[388891003,1759473191073,168.3407125,0.00017951,2]
[388891004,1759473301537,800.0,0.0001783,2]
[388891005,1759473301575,800.0,0.0001792,2]
[388891006,1759473301628,800.0,0.00018,2]
[388891007,1759473301741,800.0,0.00017939,2]
[388891008,1759473301805,800.0,0.00017814,2]
[388891009,1759473302985,158.27269776,0.00017952,2]
[388891010,1759473306596,800.0,0.00018011,2]
[388891011,1759473307727,600.0,0.00017794,2]
[388891012,1759473392172,168.34071249,0.0001795,2]
[388891013,1759473541706,800.0,0.00017964,2]
[388891014,1759473580972,168.34071249,0.0001795,2]
[388891015,1759473589446,1526.52,0.00018041,3]
[388891017,1759473600184,271.70842893,0.00018041,3]
[388891018,1759473600212,542.43157107,0.00018041,3]
[388891019,1759473610783,407.07,0.00018041,3]
[388891021,1759473621695,203.53,0.00018041,3]
[388891022,1759473632319,610.64,0.00018041,3]
[388891023,1759473633959,1140.0,0.00018043,2]
[388891024,1759473660680,181.97619083,0.0001715,2]
[388891025,1759473660721,168.0,0.00018,2]
[388891026,1759473662186,727.17685856,0.0001715,2]
[388891028,1759473756429,168.34071249,0.00017949,2]
[388891029,1759473839670,500.0,0.00018012,2]
[388891030,1759473859431,168.0,0.00017867,2]
[388891033,1759474096200,209.270276,0.0001705,2]
[388891035,1759474196186,983.75,0.00018039,3]
[388891036,1759474207048,491.87,0.00018039,3]
[388891037,1759474217836,245.94,0.00018039,3]
[388891039,1759474228495,737.84,0.00018039,3]
[388891096,1759474232410,-465.81275883,0.00018046,2]
[388891100,1759474232420,-120.04394725,0.00018046,2]
[388891102,1759474232431,-379.95605275,0.00018046,2]
[388891103,1759474232440,-300.0,0.00018046,2]
[388891104,1759474232449,-66.71179788,0.00018046,2]
[388891114,1759474238027,-724.63680619,0.00018046,2]
[388891115,1759474238039,-393.04281597,0.00018046,2]
[388891116,1759474238051,-15.60857996,0.00018046,2]
[388891117,1759474238060,-1106.69567646,0.00018047,2]
[388891118,1759474238071,-343.71488185,0.00018047,2]
[388891119,1759474238079,-500.0,0.00018047,2]
[388891120,1759474238088,-500.0,0.00018047,2]
[388891121,1759474238098,-500.0,0.00018047,2]
[388891122,1759474238108,-500.0,0.00018047,2]
[388891123,1759474238118,-334.99766687,0.00018047,2]
[388891124,1759474238134,-165.00233313,0.00018047,2]
[388891125,1759474238144,-429.82410925,0.00018047,2]
[388891126,1759474238155,-138.31123054,0.00018047,2]
[388891127,1759474238165,-500.0,0.00018047,2]
[388891128,1759474238182,-500.0,0.00018047,2]
[388891129,1759474238206,-500.0,0.00018047,2]
[388891130,1759474238223,-249.12444573,0.00018047,2]
[388891131,1759474238236,-250.87555427,0.00018047,2]
[388891132,1759474238258,-500.0,0.00018047,2]
[388891133,1759474238271,-500.0,0.00018047,2]
[388891134,1759474238282,-154.34505776,0.00018047,2]
[388891135,1759474238292,-500.0,0.00018047,2]
[388891136,1759474238303,-1183.39,0.00018047,2]
[388891137,1759474238313,-2054.96,0.00018047,2]
[388891138,1759474238323,-9510.95500885,0.00018047,2]
[388891148,1759474240255,-5584.15094584,0.00018047,2]
[388891149,1759474240266,-631.18,0.00018047,2]
[388891150,1759474240275,-648.68,0.00018047,2]
[388891151,1759474240284,-500.0,0.00018047,2]
[388891152,1759474240294,-500.0,0.00018047,2]
[388891153,1759474240303,-500.0,0.00018048,2]
[388891154,1759474240312,-364.032,0.00018048,2]
[388891155,1759474240322,-500.0,0.00018048,2]
[388891156,1759474240331,-545.32,0.00018048,2]
[388891157,1759474240340,-500.0,0.00018048,2]
[388891158,1759474240349,-500.0,0.00018048,2]
[388891159,1759474240359,-500.0,0.00018048,2]
[388891160,1759474240369,-500.0,0.00018048,2]
[388891161,1759474240379,-500.0,0.00018048,2]
[388891162,1759474240388,-500.0,0.00018048,2]
[388891163,1759474240398,-515.6,0.00018048,2]
[388891164,1759474240407,-500.0,0.00018048,2]
[388891165,1759474240417,-166.13263114,0.00018048,2]
[388891166,1759474240426,-428.12697726,0.00018048,2]
[388891167,1759474240435,-500.0,0.00018048,2]
[388891168,1759474240444,-500.0,0.00018048,2]
[388891169,1759474240454,-500.0,0.00018048,2]
[388891170,1759474240464,-500.0,0.00018048,2]
[388891171,1759474240473,-500.0,0.00018048,2]
[388891172,1759474240482,-1132.2,0.00018048,2]
[388891173,1759474240493,-514.4,0.00018048,2]
[388891174,1759474240503,-500.0,0.00018048,2]
[388891175,1759474240517,-1735.3,0.00018048,2]
[388891176,1759474240527,-993.66,0.00018048,2]
[388891177,1759474240536,-500.0,0.00018048,2]
[388891178,1759474240546,-500.0,0.00018048,2]
[388891179,1759474240556,-1188.15,0.00018048,2]
[388891180,1759474240565,-438.63878837,0.00018048,2]
[388891181,1759474240575,-151.0,0.00018048,2]
[388891182,1759474240585,-503.24688114,0.00018048,2]
[388891183,1759474240596,-500.0,0.00018048,2]
[388891184,1759474240605,-500.0,0.00018048,2]
[388891185,1759474240615,-500.0,0.00018048,2]
[388891186,1759474240624,-500.0,0.00018048,2]
[388891187,1759474240634,-500.0,0.00018048,2]
[388891188,1759474240644,-500.0,0.00018048,2]
[388891189,1759474240654,-500.0,0.00018048,2]
[388891190,1759474240663,-588.85,0.00018048,2]
[388891191,1759474240673,-500.0,0.00018048,2]
[388891192,1759474240683,-1121.43,0.00018048,2]
[388891193,1759474240693,-892.78,0.00018048,2]
[388891194,1759474240702,-500.0,0.00018048,2]
[388891195,1759474240713,-1068.33,0.00018048,2]
[388891196,1759474240723,-1710.59,0.00018048,2]
[388891197,1759474240733,-243.644425,0.00018048,2]
[388891198,1759474240743,-500.0,0.00018048,2]
[388891199,1759474240753,-200.0,0.00018048,10]
[388891200,1759474240763,-200.0,0.00018048,10]
[388891201,1759474240776,-169.384631,0.00018048,10]
[388891202,1759474240786,-500.0,0.00018048,2]
[388891203,1759474240797,-500.0,0.00018048,2]
[388891204,1759474240807,-155.157909,0.00018048,2]
[388891205,1759474240817,-789.2,0.00018048,2]
[388891206,1759474240827,-500.0,0.00018048,2]
[388891207,1759474240838,-500.0,0.00018048,2]
[388891208,1759474240852,-2958.81,0.00018048,2]
[388891209,1759474240862,-502.56613108,0.00018048,2]
[388891210,1759474240871,-500.0,0.00018048,2]
[388891211,1759474240882,-500.0,0.00018048,2]
[388891212,1759474240893,-500.0,0.00018048,2]
[388891213,1759474240903,-465.10226888,0.00018048,2]
[388891214,1759474240914,-155.164207,0.00018048,2]
[388891215,1759474240923,-500.0,0.00018048,2]
[388891216,1759474240934,-883.99,0.00018048,2]
[388891217,1759474240946,-503.95599038,0.00018048,2]
[388891218,1759474240955,-1080.26,0.00018048,2]
[388891219,1759474240967,-500.0,0.00018048,2]
[388891220,1759474240976,-1457.02,0.00018048,2]
[388891221,1759474240986,-500.0,0.00018048,2]
[388891222,1759474240997,-500.0,0.00018048,2]
[388891223,1759474241007,-2720.55,0.00018048,2]
[388891224,1759474241017,-500.0,0.00018049,2]
[388891225,1759474241028,-457.83186231,0.00018049,2]
[388891226,1759474241039,-500.0,0.00018049,2]
[388891227,1759474241050,-500.0,0.00018049,2]
[388891228,1759474241062,-502.03506165,0.00018049,2]
[388891229,1759474241072,-500.0,0.00018049,2]
[388891230,1759474241082,-500.0,0.00018049,2]
[388891231,1759474241092,-500.0,0.00018049,2]
[388891232,1759474241102,-500.0,0.00018049,2]
[388891233,1759474241112,-500.0,0.00018049,2]
[388891234,1759474241121,-500.0,0.00018049,2]
[388891235,1759474241131,-500.0,0.00018049,2]
[388891236,1759474241141,-151.0,0.00018049,2]
[388891237,1759474241151,-500.0,0.00018049,2]
[388891238,1759474241160,-151.0,0.00018049,2]
[388891239,1759474241170,-618.81,0.00018049,2]
[388891240,1759474241179,-2279.6,0.00018049,2]
[388891241,1759474241189,-508.38,0.00018049,2]
[388891242,1759474241198,-500.0,0.00018049,2]
[388891243,1759474241208,-1968.02,0.00018049,2]
[388891244,1759474241217,-500.0,0.00018049,2]
[388891245,1759474241227,-2519.54,0.00018049,2]
[388891246,1759474241237,-500.0,0.00018049,2]
[388891247,1759474241249,-151.0,0.00018049,2]
[388891248,1759474241258,-157.62276,0.00018049,2]
[388891249,1759474241268,-500.0,0.00018049,2]
[388891250,1759474241278,-500.0,0.00018049,2]
[388891251,1759474241288,-926.81,0.00018049,2]
[388891252,1759474241297,-884.99,0.00018049,2]
[388891253,1759474241306,-1401.09,0.00018049,2]
[388891254,1759474241316,-500.0,0.00018049,2]
[388891255,1759474241326,-151.0,0.00018049,2]
[388891256,1759474241335,-258.80680155,0.00018049,2]
[388891257,1759474241345,-152.06487968,0.00018049,2]
[388891258,1759474241354,-918.23,0.00018049,2]
[388891259,1759474241364,-976.86,0.00018049,2]
[388891260,1759474241374,-500.0,0.00018049,2]
[388891261,1759474241383,-504.45212364,0.00018049,2]
[388891262,1759474241393,-500.0,0.00018049,2]
[388891263,1759474241402,-500.0,0.00018049,2]
[388891264,1759474241412,-500.0,0.00018049,2]
[388891265,1759474241421,-1033.62,0.00018049,2]
[388891266,1759474241430,-667.51,0.00018049,2]
[388891267,1759474241439,-500.0,0.00018049,2]
[388891268,1759474241449,-500.0,0.00018049,2]
[388891269,1759474241458,-1793.29,0.00018049,2]
[388891270,1759474241468,-500.0,0.00018049,2]
[388891271,1759474241477,-571.36,0.00018049,2]
[388891272,1759474241497,-574.16498508,0.00018049,2]
[388891273,1759474241507,-479.52187031,0.00018049,2]
[388891274,1759474241516,-500.0,0.00018049,2]
[388891275,1759474241527,-500.0,0.00018049,2]
[388891276,1759474241537,-502.69841883,0.00018049,2]
[388891277,1759474241548,-1785.88470235,0.00018049,2]
[388891290,1759474347151,32763.29070119,0.00028767,120]
[388891292,1759474377943,1286.0625,0.00016438,2]
[388891293,1759474393104,649.44731246,0.00017949,2]
[388891294,1759474426581,160.0,0.00018,3]
[388891295,1759474431072,160.0,0.00018,3]
[388891296,1759474447066,1768.0,0.00028767,120]
[388891298,1759474528140,1208.16614966,0.00018043,2]
[388891299,1759474528165,10000.01,0.00018043,2]
[388891300,1759474528190,10000.01,0.00018043,2]
[388891301,1759474528216,10000.01,0.00018043,2]
[388891302,1759474528240,9187.46171477,0.00018043,2]
[388891304,1759474537346,5849.30653192,0.00024,30]
[388891325,1759474698234,151.0,0.00018,2]
[388891327,1759474800923,573.85,0.00018038,3]
[388891328,1759474804448,-300.0,0.00018044,2]
[388891329,1759474805391,1200.0,0.00018044,2]
[388891330,1759474811543,286.92,0.00018039,3]
[388891331,1759474822204,860.81,0.00018038,3]
[388891332,1759474835934,168.0,0.00017723,2]
[388891333,1759474868610,-300.0,0.00018044,2]
[388891334,1759474885300,186.374602,0.00017049,2]
[388891335,1759474946195,-300.0,0.00018044,2]
[388891336,1759474946228,-1200.0,0.00018044,2]
[388891338,1759474993646,-300.0,0.00018044,2]
[388891339,1759475027989,319.0,0.00017837,2]
[388891340,1759475058070,-300.0,0.00018044,2]
[388891341,1759475090287,-500.0,0.00018044,2]
[388891342,1759475090317,-487.38830427,0.00018044,2]
[388891343,1759475090351,-500.0,0.00018044,2]
[388891344,1759475090381,-500.0,0.00018044,2]
[388891345,1759475090413,-500.0,0.00018044,2]
[388891346,1759475090443,-240.85441835,0.00018044,2]
[388891347,1759475090474,-162.3734825,0.00018044,2]
[388891348,1759475090504,-500.0,0.00018044,2]
[388891349,1759475090535,-545.20212868,0.00018044,2]
[388891350,1759475090564,-200.0,0.00018044,2]
[388891351,1759475102216,300.0,0.00018044,2]
[388891352,1759475106295,1200.0,0.00018044,2]
[388891353,1759475170905,-300.0,0.00018044,2]
[388891354,1759475170939,-500.0,0.00018044,2]
[388891355,1759475175557,155.0,7.9e-07,2]
[388891356,1759475184284,500.0,0.00018044,2]
[388891357,1759475187257,500.0,0.00018044,2]
[388891358,1759475230556,168.0,0.00017732,2]
[388891359,1759475235322,-300.0,0.00018044,2]
[388891360,1759475235634,205.59513492,0.00018044,2]
[388891361,1759475250495,500.0,0.00018044,2]
[388891384,1759475267562,-500.0,0.00018044,2]
[388891386,1759475282431,300.0,0.00018044,2]
[388891387,1759475332093,-299.68888409,0.00018044,2]
[388891388,1759475332129,-500.0,0.00018044,2]
[388891389,1759475332162,-500.0,0.00018044,2]
[388891390,1759475342576,300.0,0.00018044,2]
[388891391,1759475344808,1090.53,0.00018044,2]
[388891392,1759475379366,-1134.08,0.00018044,2]
[388891393,1759475379398,-572.3,0.00018044,2]
[388891394,1759475380090,548.46,0.00018044,2]
[388891395,1759475383280,1969.34,0.00018044,2]
[388891396,1759475384000,731.12,0.00018044,2]
[388891397,1759475390185,3338.33,0.00018044,2]
[388891398,1759475390214,369.96,0.00018044,2]
[388891399,1759475406144,286.92,0.00018036,3]
[388891400,1759475411601,-621.65,0.00018044,2]
[388891401,1759475411634,-300.0,0.00018044,2]
[388891402,1759475411666,-1200.0,0.00018044,2]
[388891403,1759475416759,860.78,0.00018036,3]
[388891410,1759475432445,-500.0,0.00018045,2]
[388891411,1759475432455,-242.54698668,0.00018045,2]
[388891412,1759475432466,-227.06908255,0.00018045,2]
[388891413,1759475432476,-500.0,0.00018045,2]
[388891414,1759475432485,-500.0,0.00018045,2]
[388891415,1759475432495,-500.0,0.00018045,2]
[388891416,1759475432505,-500.0,0.00018045,2]
[388891417,1759475432515,-500.0,0.00018045,2]
[388891418,1759475432525,-500.0,0.00018045,2]
[388891419,1759475432535,-500.0,0.00018045,2]
[388891420,1759475432544,-515.63,0.00018045,2]
[388891421,1759475432555,-291.225,0.00018045,2]
[388891422,1759475432566,-500.0,0.00018045,2]
[388891423,1759475432575,-500.0,0.00018045,2]
[388891424,1759475432586,-502.09547211,0.00018045,2]
[388891425,1759475432595,-504.74,0.00018045,2]
[388891426,1759475432605,-500.0,0.00018045,2]
[388891427,1759475432615,-593.03,0.00018045,2]
[388891428,1759475432624,-2184.62,0.00018045,2]
[388891430,1759475432634,-430.04563812,0.00018045,2]
[388891432,1759475432643,-155.98873927,0.00018045,2]
[388891470,1759475438366,-272.81267215,0.00018044,2]
[388891502,1759475442818,-227.18732785,0.00018044,2]
[388891534,1759475446555,-344.01126073,0.00018045,2]
[388891535,1759475446569,-314.3087393,0.00018045,2]
[388891543,1759475448556,-165.6912607,0.00018045,2]
[388891544,1759475448567,-500.0,0.00018045,2]
[388891545,1759475448577,-500.0,0.00018045,2]
[388891546,1759475448587,-500.0,0.00018045,2]
[388891547,1759475448596,-500.0,0.00018045,2]
[388891548,1759475448607,-500.0,0.00018045,2]
[388891549,1759475448617,-500.0,0.00018045,2]
[388891550,1759475448626,-585.15,0.00018045,2]
[388891551,1759475448636,-500.0,0.00018045,2]
[388891552,1759475448645,-500.0,0.00018045,2]
[388891553,1759475448654,-500.0,0.00018045,2]
[388891554,1759475448664,-1886.02,0.00018045,2]
[388891555,1759475448673,-500.0,0.00018045,2]
[388891556,1759475448683,-500.0,0.00018045,2]
[388891557,1759475448692,-500.0,0.00018045,2]
[388891558,1759475448701,-484.29106448,0.00018045,2]
[388891559,1759475448711,-486.17660739,0.00018045,2]
[388891560,1759475448720,-500.0,0.00018045,2]
[388891561,1759475448729,-2414.56,0.00018045,2]
[388891562,1759475448739,-480.0,0.00018045,2]
[388891563,1759475448748,-486.71366833,0.00018045,2]
[388891564,1759475448757,-617.27244348,0.00018045,2]
[388891565,1759475448766,-496.10292007,0.00018045,2]
[388891566,1759475448776,-500.0,0.00018045,2]
[388891567,1759475448785,-502.39863729,0.00018045,2]
[388891568,1759475448795,-484.91072867,0.00018045,2]
[388891569,1759475448805,-489.71080675,0.00018045,2]
[388891570,1759475448814,-500.0,0.00018045,2]
[388891571,1759475448823,-500.0,0.00018045,2]
[388891572,1759475448833,-490.20791733,0.00018045,2]
[388891573,1759475448842,-888.2,0.00018045,2]
[388891574,1759475448851,-500.0,0.00018045,2]
[388891575,1759475448860,-480.0,0.00018045,2]
[388891576,1759475448870,-429.58231851,0.00018045,2]
[388891577,1759475448879,-424.78500487,0.00018045,2]
[388891578,1759475456940,500.0,0.00018044,2]
[388891579,1759475458173,168.0,0.00017635,2]
[388891580,1759475458348,500.0,0.00018044,2]
[388891581,1759475459504,268.31920398,0.00018044,2]
[388891582,1759475461250,2972.04,0.00018044,2]
[388891583,1759475462558,300.0,0.00018044,2]
[388891587,1759475475049,-500.0,0.00018044,2]
[388891588,1759475478720,500.0,0.00018044,2]
[388891589,1759475481905,12000.0,0.00025,30]
[388891590,1759475488652,992.9,0.00018044,2]
[388891591,1759475502301,232.98,0.00018036,2]
[388891592,1759475507279,-500.0,0.00018044,2]
[388891593,1759475507313,-1663.0,0.00018044,2]
[388891594,1759475517617,1536.48,0.00018044,2]
[388891595,1759475522982,300.0,0.00018044,2]
[388891596,1759475539796,-1138.65,0.00018044,2]
[388891597,1759475539829,-500.0,0.00018044,2]
[388891598,1759475539862,-1023.81,0.00018044,2]
[388891599,1759475541489,313.0,0.00018044,2]
[388891600,1759475542700,500.0,0.00018044,2]
[388891601,1759475547388,500.0,0.00018044,2]
[388891602,1759475550247,154.55216391,0.00017945,2]
[388891604,1759475571788,-500.0,0.00018044,2]
[388891605,1759475571820,-500.0,0.00018044,2]
[388891606,1759475571852,-500.0,0.00018044,2]
[388891607,1759475572087,-855.59,0.00018044,2]
[388891608,1759475578737,568.32,0.00018044,2]
[388891609,1759475579037,1086.83,0.00018044,2]
[388891610,1759475583013,300.0,0.00018044,2]
[388891611,1759475603924,-1670.99,0.00018044,2]
[388891612,1759475603959,-2093.59,0.00018044,2]
[388891613,1759475603993,-789.76,0.00018044,2]
[388891614,1759475604246,-1887.29,0.00018044,2]
[388891615,1759475604279,-500.0,0.00018044,2]
[388891616,1759475616396,595.75,0.00018044,2]
[388891617,1759475617005,500.0,0.00018044,2]
[388891618,1759475624182,2949.07,0.00018044,2]
[388891619,1759475642557,157.824902,0.00025,30]
[388891620,1759475642846,157.824902,0.00025,30]
[388891621,1759475652172,-300.0,0.00018044,2]
[388891622,1759475652205,-1434.08,0.00018044,2]
[388891623,1759475652238,-959.18,0.00018044,2]
[388891624,1759475658857,168.0,0.00017645,2]
[388891625,1759475659023,1170.16,0.00018044,2]
[388891626,1759475661512,700.66,0.00018044,2]
[388891627,1759475661907,168.0,0.00017638,2]
[388891628,1759475663240,166.949971,0.00025,30]
[388891629,1759475665078,168.0,0.0001745,2]
[388891630,1759475668647,168.0,0.00017427,2]
[388891631,1759475669002,500.0,0.00018044,2]
[388891632,1759475671738,168.0,0.00017634,2]
[388891633,1759475675631,168.0,0.00017607,2]
[388891634,1759475685807,-2708.19,0.00018044,2]
[388891635,1759475685841,-500.0,0.00018044,2]
[388891636,1759475685874,-500.0,0.00018044,2]
[388891637,1759475685910,-732.22,0.00018044,2]
[388891638,1759475686159,-1119.19,0.00018044,2]
[388891639,1759475693367,1807.43,0.00018044,2]
[388891640,1759475698593,516.84,0.00018044,2]
[388891641,1759475716719,-300.0,0.00018044,2]
[388891642,1759475716751,-500.0,0.00018044,2]
[388891643,1759475716787,-2313.96,0.00018044,2]
[388891644,1759475716818,-500.0,0.00018044,2]
[388891645,1759475716852,-1200.0,0.00018044,2]
[388891646,1759475718687,372.09,0.00018044,2]
[388891647,1759475718714,127.91,0.00018044,2]
[388891648,1759475721905,709.65,0.00018044,2]
[388891649,1759475722365,1593.71,0.00018044,2]
[388891650,1759475724945,500.0,0.00018044,2]
[388891651,1759475725780,500.0,0.00018044,2]
[388891652,1759475727764,2848.21,0.00018044,2]
[388891653,1759475728859,500.0,0.00018044,2]
[388891654,1759475736936,500.0,0.00018044,2]
[388891655,1759475737099,990.55,0.00018044,2]
[388891656,1759475739054,500.0,0.00018044,2]
[388891657,1759475739177,156.65221745,0.00017945,2]
[388891658,1759475739327,521.88,0.00018044,2]
[388891659,1759475740377,551.44778255,0.00018044,2]
[388891660,1759475740402,887.20221745,0.00018044,2]
[388891661,1759475756860,-500.0,0.00018044,2]
[388891662,1759475756899,-500.0,0.00018044,2]
[388891663,1759475762782,-300.0,0.00018043,2]
[388891664,1759475763076,-6049.68609001,0.00018044,2]
[388891665,1759475764791,-1071.93229751,0.00018044,2]
[388891666,1759475764841,-7856.14540498,0.00018044,2]
[388891670,1759475774978,-500.0,0.00018044,2]
[388891671,1759475775014,-547.55,0.00018044,2]
[388891672,1759475775050,-500.0,0.00018044,2]
[388891673,1759475775086,-502.28264794,0.00018044,2]
[388891674,1759475775121,-615.86,0.00018044,2]
[388891675,1759475775158,-500.0,0.00018044,2]
[388891676,1759475775194,-500.0,0.00018044,2]
[388891677,1759475775229,-951.53,0.00018044,2]
[388891678,1759475775265,-265.56470412,0.00018044,2]
[388891679,1759475775733,-234.43529588,0.00018044,2]
[388891680,1759475775768,-851.19,0.00018044,2]
[388891681,1759475777885,742.15,0.00018044,2]
[388891682,1759475779095,819.94,0.00018044,2]
[388891683,1759475780149,500.0,0.00018044,2]
[388891684,1759475781270,500.0,0.00018044,2]
[388891685,1759475789822,1004.2954986,0.00018044,2]
[388891686,1759475792209,500.0,0.00018044,2]
[388891690,1759475810018,-500.0,0.00018044,2]
[388891691,1759475810052,-1330.56,0.00018044,2]
[388891692,1759475810089,-482.38941355,0.00018044,2]
[388891693,1759475810121,-500.0,0.00018044,2]
[388891694,1759475810154,-500.0,0.00018044,2]
[388891695,1759475810448,-500.0,0.00018044,2]
[388891696,1759475810481,-704.1411729,0.00018044,2]
[388891697,1759475810669,-965.8288271,0.00018044,2]
[388891698,1759475810700,-500.0,0.00018044,2]
[388891699,1759475810737,-879.97,0.00018044,2]
[388891700,1759475811367,500.0,0.00018044,2]
[388891701,1759475817647,500.0,0.00018044,2]
[388891702,1759475818269,500.0,0.00018044,2]
[388891703,1759475818460,500.0,0.00018044,2]
[388891704,1759475819703,756.85,0.00018044,2]
[388891705,1759475820930,981.15,0.00018044,2]
[388891706,1759475822815,1261.07,0.00018044,2]
[388891707,1759475823111,300.0,0.00018044,2]
[388891708,1759475823789,9.3423458,0.00018044,2]
[388891709,1759475823816,490.6576542,0.00018044,2]
[388891710,1759475823936,1041.55,0.00018044,2]
[388891711,1759475831013,500.0,0.00018044,2]
[388891712,1759475831192,3065.69,0.00018044,2]
[388891713,1759475831828,495.02002637,0.00018044,2]
[388891719,1759475837260,500.0,0.00018044,2]
[388891720,1759475839821,500.0,0.00018044,2]
[388891721,1759475856466,-1808.65,0.00018044,2]
[388891722,1759475856499,-324.70843192,0.00018044,2]
[388891723,1759475856532,-500.0,0.00018044,2]
[388891724,1759475856568,-1907.10313616,0.00018044,2]
[388891725,1759475856810,-919.08686384,0.00018044,2]
[388891726,1759475856842,-500.0,0.00018044,2]
[388891727,1759475856877,-500.0,0.00018044,2]
[388891728,1759475856911,-570.92,0.00018044,2]
[388891729,1759475856945,-500.0,0.00018044,2]
[388891730,1759475862639,500.0,0.00018044,2]
[388891731,1759475865072,919.22,0.00018044,2]
[388891732,1759475867940,500.0,0.00018044,2]
[388891733,1759475871357,671.47,0.00018044,2]
[388891734,1759475872145,500.0,0.00018044,2]
[388891735,1759475887703,-300.0,0.00018043,2]
[388891736,1759475903657,-1121.41,0.00018044,2]
[388891737,1759475903691,-568.98,0.00018044,2]
[388891738,1759475903725,-2000.0,0.00018044,2]
[388891739,1759475903763,-762.925,0.00018044,2]
[388891740,1759475904222,-1093.38,0.00018044,2]
[388891741,1759475904257,-500.0,0.00018044,2]
[388891742,1759475904289,-500.0,0.00018044,2]
[388891743,1759475904320,-500.0,0.00018044,2]
[388891744,1759475904352,-509.81,0.00018044,2]
[388891745,1759475904384,-500.0,0.00018044,2]
[388891746,1759475904416,-500.0,0.00018044,2]
[388891747,1759475904448,-500.0,0.00018044,2]